[Event "Live Chess"]
[Site "Chess.com"]
[Date "2024.06.01"]
[Round "-"]
[White "blunderabit"]
[Black "ogpin"]
[Result "0-1"]
[WhiteElo "1810"]
[BlackElo "2220"]
[TimeControl "300"]
[EndTime "11:47:15 PDT"]
[Termination "ogpin won on time"]

1. e4 {[%clk 0:04:54.8]} 1... a5 {[%clk 0:04:59.9]} 2. d4 {[%clk 0:04:50.5]}
2... Ra6 {[%clk 0:04:59.8]} 3. Bxa6 {[%clk 0:04:44.5]} 3... Nxa6 {[%clk
0:04:59.7]} 4. Nf3 {[%clk 0:04:38.5]} 4... b6 {[%clk 0:04:58.9]} 5. O-O {[%clk
0:04:34.6]} 5... Bb7 {[%clk 0:04:57.9]} 6. Re1 {[%clk 0:04:32.7]} 6... e6 {[%clk
0:04:57.3]} 7. Bg5 {[%clk 0:04:19.3]} 7... Qa8 {[%clk 0:04:45.3]} 8. Nbd2 {[%clk
0:04:16.2]} 8... h6 {[%clk 0:04:42.3]} 9. Bf4 {[%clk 0:04:14.8]} 9... d6 {[%clk
0:04:39.8]} 10. h3 {[%clk 0:04:12.7]} 10... g6 {[%clk 0:04:38.7]} 11. c3 {[%clk
0:04:09.3]} 11... Bg7 {[%clk 0:04:37.6]} 12. e5 {[%clk 0:04:02.7]} 12... g5
{[%clk 0:04:26.2]} 13. Bg3 {[%clk 0:03:57.8]} 13... h5 {[%clk 0:04:20]} 14. exd6
{[%clk 0:03:54.4]} 14... cxd6 {[%clk 0:04:19.3]} 15. Bxd6 {[%clk 0:03:51.8]}
15... g4 {[%clk 0:04:18.4]} 16. Nh2 {[%clk 0:03:17.1]} 16... Bxg2 {[%clk
0:04:09.8]} 17. hxg4 {[%clk 0:03:08.8]} 17... Bh3 {[%clk 0:04:09]} 18. Qf3
{[%clk 0:02:38]} 18... Qxf3 {[%clk 0:04:07]} 19. Ndxf3 {[%clk 0:02:35.7]} 19...
hxg4 {[%clk 0:04:02.1]} 20. Ng5 {[%clk 0:02:27.8]} 20... Kd7 {[%clk 0:03:49.1]}
21. Be5 {[%clk 0:02:19.3]} 21... f6 {[%clk 0:03:46.5]} 22. Nxh3 {[%clk
0:02:09.4]} 22... gxh3 {[%clk 0:03:36]} 23. Bg3 {[%clk 0:02:04.9]} 23... Ne7
{[%clk 0:03:34.3]} 24. Nf1 {[%clk 0:01:56.5]} 24... Nf5 {[%clk 0:03:27.3]} 25.
Kh2 {[%clk 0:01:54.9]} 25... Nc7 {[%clk 0:03:24]} 26. Re4 {[%clk 0:01:52]} 26...
Nxg3 {[%clk 0:02:41.4]} 27. Nxg3 {[%clk 0:01:49.1]} 27... Bf8 {[%clk 0:02:39.7]}
28. Rae1 {[%clk 0:01:45.7]} 28... Bd6 {[%clk 0:02:38.8]} 29. c4 {[%clk
0:01:41.2]} 29... f5 {[%clk 0:02:35.5]} 30. Re5 {[%clk 0:01:06.3]} 30... Bxe5
{[%clk 0:02:27.4]} 31. dxe5 {[%clk 0:01:04.8]} 31... Rh4 {[%clk 0:02:26.8]} 32.
Rd1+ {[%clk 0:01:02.4]} 32... Kc6 {[%clk 0:02:17.3]} 33. b3 {[%clk 0:01:01.5]}
33... Rf4 {[%clk 0:02:10.2]} 34. Rd2 {[%clk 0:00:53.1]} 34... a4 {[%clk
0:02:02.7]} 35. Kxh3 {[%clk 0:00:50.1]} 35... axb3 {[%clk 0:01:48]} 36. axb3
{[%clk 0:00:47.9]} 36... Rf3 {[%clk 0:01:47.5]} 37. b4 {[%clk 0:00:39.2]} 37...
Rc3 {[%clk 0:01:46.4]} 38. Rd6+ {[%clk 0:00:32.6]} 38... Kb7 {[%clk 0:01:45.5]}
39. Kg2 {[%clk 0:00:27.1]} 39... Rxc4 {[%clk 0:01:44.1]} 40. Nh5 {[%clk
0:00:15.6]} 40... Rxb4 {[%clk 0:01:36]} 41. Nf6 {[%clk 0:00:13]} 41... Rb5
{[%clk 0:01:30.1]} 42. Rd7 {[%clk 0:00:08.9]} 42... Rxe5 {[%clk 0:01:27.1]} 43.
Ne8 {[%clk 0:00:04.6]} 43... Rc5 {[%clk 0:01:26.5]} 0-1

[Event "Live Chess"]
[Site "Chess.com"]
[Date "2024.06.01"]
[Round "-"]
[White "Isambard_Thomas"]
[Black "peteopeteo"]
[Result "1-0"]
[WhiteElo "2165"]
[BlackElo "1598"]
[TimeControl "300"]
[EndTime "11:47:18 PDT"]
[Termination "Isambard_Thomas won by resignation"]

1. d4 {[%clk 0:04:58.8]} 1... d5 {[%clk 0:04:59.2]} 2. Nf3 {[%clk 0:04:58.3]}
2... Bf5 {[%clk 0:04:58.2]} 3. Bg5 {[%clk 0:04:58.2]} 3... Nd7 {[%clk
0:04:42.7]} 4. e3 {[%clk 0:04:57.2]} 4... h6 {[%clk 0:04:40.6]} 5. Bf4 {[%clk
0:04:55.9]} 5... Ngf6 {[%clk 0:04:36]} 6. Nbd2 {[%clk 0:04:52.3]} 6... e6 {[%clk
0:04:35.3]} 7. c3 {[%clk 0:04:50.3]} 7... Be7 {[%clk 0:04:31.2]} 8. h3 {[%clk
0:04:46.3]} 8... c5 {[%clk 0:04:27.6]} 9. Be5 {[%clk 0:04:41.7]} 9... O-O {[%clk
0:04:21.1]} 10. g4 {[%clk 0:04:38.4]} 10... Be4 {[%clk 0:04:16.9]} 11. Be2
{[%clk 0:04:30.9]} 11... Nxe5 {[%clk 0:04:13.3]} 12. dxe5 {[%clk 0:04:30.2]}
12... Bxf3 {[%clk 0:04:09.4]} 13. Nxf3 {[%clk 0:04:21.4]} 13... Nd7 {[%clk
0:04:08.5]} 14. Qc2 {[%clk 0:04:20.1]} 14... Qc7 {[%clk 0:04:02.6]} 15. h4
{[%clk 0:03:48.8]} 15... Nxe5 {[%clk 0:03:56]} 16. g5 {[%clk 0:03:47.6]} 16...
h5 {[%clk 0:03:38.1]} 17. Nxe5 {[%clk 0:03:26.9]} 17... Qxe5 {[%clk 0:03:31.8]}
18. Bxh5 {[%clk 0:03:22]} 18... Rad8 {[%clk 0:03:11.9]} 19. O-O-O {[%clk
0:03:14.6]} 19... b5 {[%clk 0:02:52.6]} 20. Rhe1 {[%clk 0:03:05.2]} 20... Qe4
{[%clk 0:02:39.4]} 21. Qxe4 {[%clk 0:02:52.8]} 21... dxe4 {[%clk 0:02:39.3]} 22.
Be2 {[%clk 0:02:51.9]} 22... c4 {[%clk 0:02:29.4]} 23. Rd4 {[%clk 0:02:37.4]}
23... Rxd4 {[%clk 0:02:19.9]} 24. exd4 {[%clk 0:02:37.3]} 24... f5 {[%clk
0:02:16.4]} 25. gxf6 {[%clk 0:02:31.9]} 25... Bxf6 {[%clk 0:02:10.1]} 26. Bg4
{[%clk 0:02:26.8]} 26... Kf7 {[%clk 0:01:44]} 27. Rxe4 {[%clk 0:02:17.9]} 27...
Bxh4 {[%clk 0:01:34.8]} 28. Bxe6+ {[%clk 0:02:16]} 28... Kf6 {[%clk 0:01:31.9]}
29. Bd7 {[%clk 0:02:13]} 29... Bg5+ {[%clk 0:01:25.1]} 30. Kb1 {[%clk
0:01:41.7]} 30... Kg6 {[%clk 0:01:24.5]} 31. Re6+ {[%clk 0:01:34.1]} 31... Kh5
{[%clk 0:01:21.9]} 32. Bxb5 {[%clk 0:01:30.9]} 32... Rxf2 {[%clk 0:01:06.2]} 33.
Bxc4 {[%clk 0:01:29.8]} 33... Rg2 {[%clk 0:00:50.2]} 34. Be2+ {[%clk 0:01:26.5]}
34... Kh4 {[%clk 0:00:46.8]} 35. c4 {[%clk 0:01:24.3]} 35... Bf6 {[%clk
0:00:38.3]} 36. d5 {[%clk 0:01:17]} 36... a5 {[%clk 0:00:27.7]} 37. d6 {[%clk
0:01:13.6]} 37... a4 {[%clk 0:00:25.8]} 38. a3 {[%clk 0:01:10.7]} 38... Rg1+
{[%clk 0:00:21.7]} 39. Kc2 {[%clk 0:01:08.8]} 39... Rg2 {[%clk 0:00:19.2]} 40.
c5 {[%clk 0:01:03.8]} 40... Kg5 {[%clk 0:00:18.3]} 41. c6 {[%clk 0:01:01]} 41...
Kf5 {[%clk 0:00:17.7]} 42. Re8 {[%clk 0:00:57.6]} 42... Kg6 {[%clk 0:00:15.6]}
43. c7 {[%clk 0:00:55.3]} 43... Kf7 {[%clk 0:00:15]} 44. c8=Q {[%clk 0:00:54.3]}
44... g5 {[%clk 0:00:11.4]} 45. Qe6+ {[%clk 0:00:53.6]} 45... Kg6 {[%clk
0:00:10.5]} 46. Rg8+ {[%clk 0:00:53]} 1-0

[Event "Live Chess"]
[Site "Chess.com"]
[Date "2024.06.01"]
[Round "-"]
[White "JohanKjeldahl"]
[Black "sebmoran1"]
[Result "1-0"]
[WhiteElo "1817"]
[BlackElo "1463"]
[TimeControl "300"]
[EndTime "11:47:27 PDT"]
[Termination "JohanKjeldahl won by resignation"]

1. e4 {[%clk 0:04:54.8]} 1... c6 {[%clk 0:04:58.9]} 2. d4 {[%clk 0:04:52.6]}
2... d5 {[%clk 0:04:58.8]} 3. Nc3 {[%clk 0:04:51.2]} 3... dxe4 {[%clk
0:04:54.2]} 4. Nxe4 {[%clk 0:04:50.1]} 4... Bf5 {[%clk 0:04:52.2]} 5. Ng3 {[%clk
0:04:48.7]} 5... Bg6 {[%clk 0:04:50.6]} 6. Nf3 {[%clk 0:04:47.7]} 6... h6 {[%clk
0:04:49.5]} 7. h4 {[%clk 0:04:46.8]} 7... e6 {[%clk 0:04:47.9]} 8. h5 {[%clk
0:04:45.8]} 8... Bh7 {[%clk 0:04:46.5]} 9. Bd3 {[%clk 0:04:44.9]} 9... Bxd3
{[%clk 0:04:44.6]} 10. Qxd3 {[%clk 0:04:43.8]} 10... Nf6 {[%clk 0:04:44.5]} 11.
Be3 {[%clk 0:04:40.5]} 11... Be7 {[%clk 0:04:37]} 12. O-O-O {[%clk 0:04:38.7]}
12... O-O {[%clk 0:04:32.1]} 13. Ne5 {[%clk 0:04:37.6]} 13... Nd5 {[%clk
0:04:30.5]} 14. c3 {[%clk 0:04:33.2]} 14... Nxe3 {[%clk 0:04:28.9]} 15. fxe3
{[%clk 0:04:32]} 15... Nd7 {[%clk 0:04:20.6]} 16. Ng4 {[%clk 0:04:26.3]} 16...
Nf6 {[%clk 0:04:14.5]} 17. Ne5 {[%clk 0:04:18.6]} 17... Nd5 {[%clk 0:04:10.6]}
18. Kb1 {[%clk 0:04:09.4]} 18... Bg5 {[%clk 0:04:06.4]} 19. e4 {[%clk
0:04:07.2]} 19... Ne3 {[%clk 0:04:02.5]} 20. Rdg1 {[%clk 0:03:59.1]} 20... c5
{[%clk 0:03:57.8]} 21. Nf3 {[%clk 0:03:55.9]} 21... cxd4 {[%clk 0:03:55.5]} 22.
cxd4 {[%clk 0:03:53.9]} 22... Bf4 {[%clk 0:03:33.6]} 23. Ne2 {[%clk 0:03:51.5]}
23... Qc7 {[%clk 0:03:22.8]} 24. e5 {[%clk 0:03:45.9]} 24... Nd5 {[%clk
0:03:17.9]} 25. g4 {[%clk 0:03:29.9]} 25... Rac8 {[%clk 0:03:03.6]} 26. Nxf4
{[%clk 0:03:18.4]} 26... Nxf4 {[%clk 0:03:03.5]} 27. Qe4 {[%clk 0:03:16.8]}
27... Nd5 {[%clk 0:02:51.6]} 28. g5 {[%clk 0:03:14.2]} 28... Nb4 {[%clk
0:02:46.9]} 29. gxh6 {[%clk 0:03:11.1]} 29... f5 {[%clk 0:02:16.6]} 30. exf6
{[%clk 0:03:04.7]} 30... Rxf6 {[%clk 0:02:09.1]} 31. Rxg7+ {[%clk 0:03:02.3]}
31... Qxg7 {[%clk 0:02:04.2]} 32. hxg7 {[%clk 0:03:00.2]} 32... Kxg7 {[%clk
0:02:04.1]} 33. Rg1+ {[%clk 0:02:58]} 33... Kf7 {[%clk 0:01:57.9]} 34. Qh7+
{[%clk 0:02:55.7]} 34... Ke8 {[%clk 0:01:55.2]} 35. Rg8+ {[%clk 0:02:54.2]}
35... Rf8 {[%clk 0:01:54]} 36. Rxf8+ {[%clk 0:02:52.7]} 36... Kxf8 {[%clk
0:01:53.9]} 37. Qh8+ {[%clk 0:02:51.9]} 1-0

[Event "Live Chess"]
[Site "Chess.com"]
[Date "2024.06.01"]
[Round "-"]
[White "nigelst"]
[Black "NottheBishopSacrifice"]
[Result "0-1"]
[WhiteElo "1668"]
[BlackElo "2304"]
[TimeControl "300"]
[EndTime "11:47:34 PDT"]
[Termination "NottheBishopSacrifice won by resignation"]

1. e4 {[%clk 0:04:56.9]} 1... e5 {[%clk 0:04:58.2]} 2. Nf3 {[%clk 0:04:55.4]}
2... Nc6 {[%clk 0:04:56.9]} 3. Bb5 {[%clk 0:04:53]} 3... Bc5 {[%clk 0:04:56]} 4.
O-O {[%clk 0:04:50.5]} 4... d6 {[%clk 0:04:54.7]} 5. c3 {[%clk 0:04:48.4]} 5...
Bd7 {[%clk 0:04:53.2]} 6. d4 {[%clk 0:04:45.6]} 6... Bb6 {[%clk 0:04:52.5]} 7.
d5 {[%clk 0:04:44.2]} 7... Nce7 {[%clk 0:04:51.2]} 8. Bxd7+ {[%clk 0:04:43.1]}
8... Qxd7 {[%clk 0:04:51.1]} 9. c4 {[%clk 0:04:41.1]} 9... Nf6 {[%clk
0:04:50.5]} 10. Nc3 {[%clk 0:04:38.5]} 10... O-O {[%clk 0:04:48]} 11. Qe2 {[%clk
0:04:32.7]} 11... h6 {[%clk 0:04:45.5]} 12. Be3 {[%clk 0:04:31.1]} 12... Nh7
{[%clk 0:04:43.7]} 13. Bxb6 {[%clk 0:04:28.6]} 13... axb6 {[%clk 0:04:42]} 14.
a3 {[%clk 0:04:27.5]} 14... f5 {[%clk 0:04:41.3]} 15. exf5 {[%clk 0:04:25.2]}
15... Nxf5 {[%clk 0:04:41.2]} 16. Ne4 {[%clk 0:04:22.3]} 16... Nf6 {[%clk
0:04:40]} 17. Nxf6+ {[%clk 0:04:19.9]} 17... Rxf6 {[%clk 0:04:39.9]} 18. Nd2
{[%clk 0:04:18.1]} 18... Raf8 {[%clk 0:04:38.9]} 19. Ne4 {[%clk 0:04:16.5]}
19... R6f7 {[%clk 0:04:38.5]} 20. b4 {[%clk 0:04:13.8]} 20... Nd4 {[%clk
0:04:37.7]} 21. Qd3 {[%clk 0:04:09.5]} 21... Qg4 {[%clk 0:04:11.9]} 22. Kh1
{[%clk 0:03:58.4]} 22... Qh4 {[%clk 0:04:03.4]} 23. Ra2 {[%clk 0:03:41.1]} 23...
Rf3 {[%clk 0:03:58.4]} 24. Qd1 {[%clk 0:03:21.6]} 24... Qxe4 {[%clk 0:03:49.2]}
25. gxf3 {[%clk 0:03:20.4]} 25... Nxf3 {[%clk 0:03:48.1]} 26. Rg1 {[%clk
0:03:05]} 26... Nxg1+ {[%clk 0:03:32.1]} 27. f3 {[%clk 0:03:04.2]} 27... Nxf3
{[%clk 0:03:26.7]} 0-1

[Event "Live Chess"]
[Site "Chess.com"]
[Date "2024.06.01"]
[Round "-"]
[White "cymbalshift"]
[Black "Sweet-O"]
[Result "0-1"]
[WhiteElo "1424"]
[BlackElo "1549"]
[TimeControl "300"]
[EndTime "11:47:51 PDT"]
[Termination "Sweet-O won on time"]

1. d4 {[%clk 0:04:56.1]} 1... c5 {[%clk 0:04:58.2]} 2. d5 {[%clk 0:04:53.5]}
2... d6 {[%clk 0:04:56.8]} 3. c4 {[%clk 0:04:52.2]} 3... g6 {[%clk 0:04:56.7]}
4. Nc3 {[%clk 0:04:51.3]} 4... Bg7 {[%clk 0:04:56.6]} 5. e4 {[%clk 0:04:50.6]}
5... Nf6 {[%clk 0:04:56]} 6. Bd3 {[%clk 0:04:47.2]} 6... O-O {[%clk 0:04:55.4]}
7. Nge2 {[%clk 0:04:46.6]} 7... e5 {[%clk 0:04:54.5]} 8. O-O {[%clk 0:04:42.2]}
8... Ng4 {[%clk 0:04:53]} 9. h3 {[%clk 0:04:38.7]} 9... h5 {[%clk 0:04:48]} 10.
hxg4 {[%clk 0:04:29.2]} 10... hxg4 {[%clk 0:04:47.9]} 11. Ng3 {[%clk 0:04:25.9]}
11... Bf6 {[%clk 0:04:45.2]} 12. Be2 {[%clk 0:04:05.2]} 12... Qd7 {[%clk
0:04:38.1]} 13. f4 {[%clk 0:04:00.1]} 13... Kg7 {[%clk 0:04:34.6]} 14. f5 {[%clk
0:03:55]} 14... Bh4 {[%clk 0:04:23]} 15. Qd3 {[%clk 0:03:33.5]} 15... Na6 {[%clk
0:03:57.8]} 16. Bxg4 {[%clk 0:03:27.4]} 16... Nb4 {[%clk 0:03:55]} 17. Qf3
{[%clk 0:03:20.2]} 17... f6 {[%clk 0:03:40.8]} 18. fxg6 {[%clk 0:03:14.8]} 18...
Qxg4 {[%clk 0:03:38.7]} 19. Nh5+ {[%clk 0:02:50]} 19... Kxg6 {[%clk 0:03:26.7]}
20. Qxg4+ {[%clk 0:02:24.3]} 20... Bxg4 {[%clk 0:03:26.6]} 21. g3 {[%clk
0:02:23.6]} 21... Bg5 {[%clk 0:03:18.7]} 22. Nf4+ {[%clk 0:02:16.2]} 22... exf4
{[%clk 0:03:15.9]} 23. gxf4 {[%clk 0:02:16.1]} 23... Bh6 {[%clk 0:03:09.3]} 24.
Kf2 {[%clk 0:02:10.7]} 24... Nd3+ {[%clk 0:03:04.5]} 25. Ke3 {[%clk 0:02:07.7]}
25... Nxc1 {[%clk 0:02:58.7]} 26. Raxc1 {[%clk 0:02:07.6]} 26... Rae8 {[%clk
0:02:49.7]} 27. Rg1 {[%clk 0:02:04.3]} 27... f5 {[%clk 0:02:45.2]} 28. Rc2
{[%clk 0:01:49.1]} 28... Kh7 {[%clk 0:02:36]} 29. Rh2 {[%clk 0:01:47]} 29... Rf6
{[%clk 0:02:30.8]} 30. Rh4 {[%clk 0:01:13.4]} 30... Rg6 {[%clk 0:02:14.4]} 31.
Nb5 {[%clk 0:00:42.5]} 31... Rxe4+ {[%clk 0:02:11.1]} 32. Kd3 {[%clk 0:00:41.6]}
32... Rxf4 {[%clk 0:02:04.1]} 33. Nc7 {[%clk 0:00:27.5]} 33... Rf3+ {[%clk
0:02:02.5]} 34. Kc2 {[%clk 0:00:22.5]} 34... Rf2+ {[%clk 0:01:57.6]} 35. Kc3
{[%clk 0:00:19.9]} 35... Kg8 {[%clk 0:01:36.1]} 36. Ne6 {[%clk 0:00:16.6]} 36...
Bd2+ {[%clk 0:01:33.9]} 37. Kb3 {[%clk 0:00:15]} 37... Re2 {[%clk 0:01:11.3]}
38. Rgh1 {[%clk 0:00:12.8]} 38... Kf7 {[%clk 0:00:59.1]} 39. Rh7+ {[%clk
0:00:10]} 39... Kf6 {[%clk 0:00:56.7]} 40. Rxb7 {[%clk 0:00:03.4]} 40... Re3+
{[%clk 0:00:54.7]} 0-1

[Event "Live Chess"]
[Site "Chess.com"]
[Date "2024.06.01"]
[Round "-"]
[White "OurKnightAtTheOpera"]
[Black "chessfiction"]
[Result "0-1"]
[WhiteElo "2023"]
[BlackElo "2420"]
[TimeControl "300"]
[EndTime "11:47:58 PDT"]
[Termination "chessfiction won by resignation"]

1. e4 {[%clk 0:04:59.8]} 1... c5 {[%clk 0:04:50.3]} 2. Nf3 {[%clk 0:04:55.1]}
2... e6 {[%clk 0:04:47.7]} 3. d4 {[%clk 0:04:53]} 3... cxd4 {[%clk 0:04:47.6]}
4. Nxd4 {[%clk 0:04:52.7]} 4... a6 {[%clk 0:04:43.3]} 5. Nc3 {[%clk 0:04:51.8]}
5... Qc7 {[%clk 0:04:33.9]} 6. Be3 {[%clk 0:04:50.3]} 6... Bb4 {[%clk
0:04:31.7]} 7. Qd3 {[%clk 0:04:41.8]} 7... Nf6 {[%clk 0:04:30.5]} 8. O-O-O
{[%clk 0:04:27.9]} 8... Bxc3 {[%clk 0:04:23.9]} 9. Qxc3 {[%clk 0:04:21.8]} 9...
Qxc3 {[%clk 0:04:21.5]} 10. bxc3 {[%clk 0:04:21.3]} 10... Nxe4 {[%clk
0:04:20.3]} 11. Kb2 {[%clk 0:04:21]} 11... Nc6 {[%clk 0:04:18.8]} 12. Bd3 {[%clk
0:04:17.9]} 12... Nf6 {[%clk 0:04:15.4]} 13. Nb3 {[%clk 0:04:15.2]} 13... Nd5
{[%clk 0:04:11.7]} 14. Bc5 {[%clk 0:04:13.1]} 14... b6 {[%clk 0:04:08]} 15. Bd6
{[%clk 0:04:11.6]} 15... Bb7 {[%clk 0:04:06.9]} 16. Be4 {[%clk 0:04:03.8]} 16...
Nde7 {[%clk 0:03:39.5]} 17. Bc7 {[%clk 0:03:38.6]} 17... Na5 {[%clk 0:03:14.4]}
18. Bxb7 {[%clk 0:03:35.1]} 18... Nxb7 {[%clk 0:03:14.3]} 19. Bxb6 {[%clk
0:03:31.9]} 19... Nd5 {[%clk 0:03:10.3]} 20. Bd4 {[%clk 0:03:11.3]} 20... O-O
{[%clk 0:03:01.3]} 21. Rhe1 {[%clk 0:02:52]} 21... Rfc8 {[%clk 0:02:58.4]} 22.
h4 {[%clk 0:02:30.9]} 22... Nd6 {[%clk 0:02:53.3]} 23. Rd3 {[%clk 0:02:23.6]}
23... Rab8 {[%clk 0:02:48.3]} 24. g4 {[%clk 0:01:49]} 24... a5 {[%clk
0:02:38.8]} 25. a4 {[%clk 0:01:45.9]} 25... Nc4+ {[%clk 0:02:27.9]} 26. Ka2
{[%clk 0:01:32.6]} 26... Ncb6 {[%clk 0:02:25.9]} 27. Bxb6 {[%clk 0:01:20.9]}
27... Nxb6 {[%clk 0:02:24.4]} 28. Re4 {[%clk 0:00:33]} 28... d5 {[%clk
0:02:22.7]} 29. Rf4 {[%clk 0:00:32.1]} 29... Rc4 {[%clk 0:02:18]} 30. Rxc4
{[%clk 0:00:30]} 30... dxc4 {[%clk 0:02:17.9]} 31. Rd6 {[%clk 0:00:26.1]} 31...
cxb3+ {[%clk 0:02:16.3]} 32. cxb3 {[%clk 0:00:26]} 32... Nd5 {[%clk 0:02:14.4]}
33. c4 {[%clk 0:00:24.4]} 33... Nb4+ {[%clk 0:02:12.7]} 34. Kb2 {[%clk 0:00:24]}
34... Kf8 {[%clk 0:02:12.5]} 35. Kc3 {[%clk 0:00:22.9]} 35... Ke7 {[%clk
0:02:11.9]} 36. Kd4 {[%clk 0:00:22.2]} 36... Kxd6 {[%clk 0:02:10.7]} 0-1

[Event "Live Chess"]
[Site "Chess.com"]
[Date "2024.06.01"]
[Round "-"]
[White "jonny_dzz"]
[Black "LL220284LL"]
[Result "1-0"]
[WhiteElo "1943"]
[BlackElo "2562"]
[TimeControl "300"]
[EndTime "11:48:11 PDT"]
[Termination "jonny_dzz won by resignation"]

1. d4 {[%clk 0:04:59.4]} 1... Nf6 {[%clk 0:04:58.5]} 2. e3 {[%clk 0:04:58]} 2...
c5 {[%clk 0:04:56.8]} 3. f4 {[%clk 0:04:55.7]} 3... d5 {[%clk 0:04:55.7]} 4. Nf3
{[%clk 0:04:54.4]} 4... Bf5 {[%clk 0:04:54.4]} 5. Bd3 {[%clk 0:04:51.3]} 5...
Bxd3 {[%clk 0:04:53.1]} 6. Qxd3 {[%clk 0:04:50.3]} 6... e6 {[%clk 0:04:52.5]} 7.
Ne5 {[%clk 0:04:41]} 7... a6 {[%clk 0:04:44.6]} 8. c3 {[%clk 0:04:32]} 8... Be7
{[%clk 0:04:43.3]} 9. Nd2 {[%clk 0:04:31.2]} 9... Nc6 {[%clk 0:04:41.6]} 10. O-O
{[%clk 0:04:26.6]} 10... O-O {[%clk 0:04:40.4]} 11. Rf3 {[%clk 0:04:24.6]} 11...
Ne8 {[%clk 0:04:30]} 12. f5 {[%clk 0:04:12.7]} 12... Nxe5 {[%clk 0:04:27.9]} 13.
dxe5 {[%clk 0:04:11.3]} 13... exf5 {[%clk 0:04:18.7]} 14. Qxf5 {[%clk
0:04:09.3]} 14... Nc7 {[%clk 0:04:16.6]} 15. e4 {[%clk 0:03:57.7]} 15... d4
{[%clk 0:04:11.6]} 16. Rh3 {[%clk 0:03:47.4]} 16... g6 {[%clk 0:04:10]} 17. Qg4
{[%clk 0:03:38.5]} 17... dxc3 {[%clk 0:04:07.4]} 18. bxc3 {[%clk 0:03:34.2]}
18... Ne6 {[%clk 0:04:02.5]} 19. Nc4 {[%clk 0:03:26.4]} 19... b5 {[%clk
0:03:55.8]} 20. Ne3 {[%clk 0:03:24]} 20... Bg5 {[%clk 0:03:41.9]} 21. Nd5 {[%clk
0:03:20.3]} 21... Be7 {[%clk 0:03:19.5]} 22. Bh6 {[%clk 0:03:03]} 22... Re8
{[%clk 0:03:17.3]} 23. Rf1 {[%clk 0:03:02.3]} 23... Ra7 {[%clk 0:03:03.8]} 24.
Rhf3 {[%clk 0:02:40.3]} 24... Bf8 {[%clk 0:02:40.3]} 25. Nf6+ {[%clk 0:02:23.7]}
25... Kh8 {[%clk 0:02:38.5]} 26. Nxe8 {[%clk 0:02:22.3]} 26... Bxh6 {[%clk
0:02:37.1]} 27. Nd6 {[%clk 0:02:15.7]} 27... Ng5 {[%clk 0:02:10.8]} 28. Rxf7
{[%clk 0:01:56.2]} 28... Rxf7 {[%clk 0:02:06.1]} 29. Rxf7 {[%clk 0:01:52.5]}
29... Kg8 {[%clk 0:01:42.9]} 30. Rd7 {[%clk 0:01:35.2]} 30... Qf8 {[%clk
0:01:36.9]} 31. h4 {[%clk 0:01:30.1]} 31... Nh3+ {[%clk 0:01:13.6]} 32. Qxh3
{[%clk 0:01:21.7]} 32... Qf4 {[%clk 0:01:06.4]} 33. Qe6+ {[%clk 0:01:16.4]}
33... Kh8 {[%clk 0:01:05.5]} 34. Qf6+ {[%clk 0:00:49.1]} 34... Qxf6 {[%clk
0:01:03.2]} 35. exf6 {[%clk 0:00:47.9]} 35... Kg8 {[%clk 0:01:02.6]} 36. e5
{[%clk 0:00:43.6]} 36... Be3+ {[%clk 0:01:01.5]} 37. Kf1 {[%clk 0:00:42.5]}
37... Bf4 {[%clk 0:01:00.4]} 38. e6 {[%clk 0:00:40.4]} 38... Bxd6 {[%clk
0:00:58.6]} 39. Rxd6 {[%clk 0:00:39.1]} 1-0

[Event "Live Chess"]
[Site "Chess.com"]
[Date "2024.06.01"]
[Round "-"]
[White "viktorskliarov"]
[Black "educatedlad"]
[Result "1-0"]
[WhiteElo "2650"]
[BlackElo "1763"]
[TimeControl "300"]
[EndTime "11:48:16 PDT"]
[Termination "viktorskliarov won by checkmate"]

1. e4 {[%clk 0:04:58.8]} 1... c5 {[%clk 0:04:58.6]} 2. Nf3 {[%clk 0:04:57.6]}
2... e6 {[%clk 0:04:58.1]} 3. d4 {[%clk 0:04:56.5]} 3... cxd4 {[%clk 0:04:58]}
4. Nxd4 {[%clk 0:04:56.3]} 4... Nc6 {[%clk 0:04:57.6]} 5. Nc3 {[%clk 0:04:53.8]}
5... a6 {[%clk 0:04:56.1]} 6. Be2 {[%clk 0:04:50.9]} 6... Qc7 {[%clk 0:04:51.3]}
7. O-O {[%clk 0:04:48.3]} 7... Nf6 {[%clk 0:04:50.3]} 8. Be3 {[%clk 0:04:45.9]}
8... Be7 {[%clk 0:04:49.4]} 9. f4 {[%clk 0:04:44.1]} 9... d6 {[%clk 0:04:46.6]}
10. Kh1 {[%clk 0:04:43.2]} 10... O-O {[%clk 0:04:43.8]} 11. Qe1 {[%clk
0:04:42.5]} 11... Nxd4 {[%clk 0:04:36.6]} 12. Bxd4 {[%clk 0:04:41]} 12... Bd7
{[%clk 0:04:32.5]} 13. Qg3 {[%clk 0:04:38.8]} 13... b5 {[%clk 0:04:21.8]} 14. a3
{[%clk 0:04:28.6]} 14... Bc6 {[%clk 0:04:10.9]} 15. Rad1 {[%clk 0:04:25.3]}
15... Bxe4 {[%clk 0:04:04.3]} 16. Nxe4 {[%clk 0:04:22.7]} 16... Nxe4 {[%clk
0:04:03.1]} 17. Qxg7# {[%clk 0:04:20.5]} 1-0